Cogmind - Beta 14 @@@ ROGUE MODE // 2024.09.18 @ 02:07:47 Player: AnotherZach Result: Escaped! Performance ------------- Evolutions (9) 4500 Regions Visited (30) 6000 Robots Destroyed (289) 1445 Value Destroyed (17581) 17581 Prototype IDs (22) 440 Alien Tech Used (0) 0 Bonus (17158) 17158 TOTAL SCORE: 47124 Bonus ------- High Alert Combat Kills 2240 Follower Combat Kills 4759 Entered Garrisons 1600 Used RIF Installer 4000 Network Hubs Disabled 200 Met Zhirov 300 Built Enhanced Grunts 300 A7 Reached Mainframe 300 Met R17 at Cetus 500 Met R17 at Research 2000 Win 3000 Friendly Fire -2041 Cogmind --------- Core Integrity 1181/1600 Matter 259/300 Energy 300/315 System Corruption 23% Temperature Cool (5) Movement Treading (93) Location To Epsilon Eridani Parts ------- > --- POWER (4) -------- Micro Antimatter Reactor Antimatter-Particle Reactor > --- PROPULSION (6) --- Treaded XBT-Myomer Exoskeleton > --- UTILITY (11) ----- Scrap Engine Advanced Heat Sink Huge Storage Unit Advanced Targeting Computer Relay Coupler [C] (28) Relay Coupler [C] (11) Relay Coupler [Sentry] (14) Relay Coupler [Proto] (10) Relay Coupler [Proto] (10) Relay Coupler [Proto] (10) > --- WEAPON (4) ------- KE Penetrator Improved Remote Datajack Hpw. Accelerated HMG Construct/G Phasing Sabre > --- INVENTORY (25) --- Quantum Reactor Myomer Leg Advanced Heat Sink Compact Matter Pod (150) Improved Transmission Jammer Advanced Phase Shifter Experimental EM Disruption Field Improved System Shield Relay Coupler [C] (25) Relay Coupler [C] (33) Relay Coupler [C] (29) Relay Coupler [Cutter] (25) Relay Coupler [Grunt] (46) Relay Coupler [Grunt] (35) Relay Coupler [Grunt] (33) Relay Coupler [Heavy] (16) Relay Coupler [Proto] (10) Long-range Tractor Beam Improved Lightning Gun KE Penetrator KE Penetrator Peak State ------------ > --- POWER ------------ Particle Reactor Antimatter-Particle Reactor > --- PROPULSION ------- Treaded XBT-Myomer Exoskeleton > --- UTILITY ---------- Armored Scrap Engine Huge Storage Unit Advanced Force Field Relay Coupler [C] Relay Coupler [C] Relay Coupler [C] Relay Coupler [C] Relay Coupler [C] Relay Coupler [Sentry] Relay Coupler [Proto] > --- WEAPON ----------- KE Penetrator Advanced Remote Datajack Hpw. Accelerated HMG Construct/G Shotgun Laser Quantum Construct/G > --- INVENTORY -------- Quantum Reactor Myomer Leg Biometal Leg Compact Matter Pod Improved Transmission Jammer Improved Transmission Jammer Advanced Phase Shifter Experimental EM Disruption Field Relay Coupler [NC] Relay Coupler [C] Relay Coupler [C] Relay Coupler [C] Relay Coupler [Cutter] Relay Coupler [Grunt] Relay Coupler [Grunt] Relay Coupler [Grunt] Relay Coupler [Heavy] Relay Coupler [Behemoth] Relay Coupler [Proto] Relay Coupler [Proto] Relay Coupler [Proto] Long-range Tractor Beam KE Penetrator Advanced Remote Datajack Phasing Sabre [Rating: 194] Favorites ----------- Power Constructs Engine Heavy Ion Engine Power Core Light Nuclear Core Reactor Constructs Propulsion Constructs Treads Constructs Leg Myomer Leg Flight Unit Flight Unit Utility Armored Scrap Engine Device Armored Scrap Engine Storage High-capacity Storage Unit Processor Advanced Target Analyzer Hackware Relay Coupler [Sentry] Protection Centrium Medium Armor Plating Weapon Constructs Energy Gun Advanced Variable Charge Gun Energy Cannon Enhanced Nova Cannon Ballistic Gun Constructs Ballistic Cannon Constructs Launcher Missile Launcher Special Weapon Improved Remote Datajack Impact Weapon Hammer Slashing Weapon Power Sword Special Melee Weapon Improved Datajack Build | -11 -10 -10 -9 -9 -9 -7 -7 -7 -7 -6 -6 -6 -5 -5 -5 -5 -4 -4 -4 -4 -4 -4 -4 -3 -3 -2 -2 -1 -1 -1 ------- Run | Yrd Mat Min Mat Sto Rec Fac Gar Fac Gar Fac Was Fac Fac Gar Fac Gar Fac Gar Fac Ext Cet Arc Hub Res Gar Res Gar Acc Gar Acc Slots Evolved 18 | . . . 2 . . 4 . . . 2 . . 2 . . . 2 . . . . . . 2 . 2 . 2 . . Power 3 | . . . . . . 1 . . . . . . . . . . . . . . . . . 1 . . . 1 . . Propulsion 4 | . . . 1 . . 1 . . . . . . 2 . . . . . . . . . . . . . . . . . Utility 9 | . . . 1 . . 1 . . . 2 . . . . . . 2 . . . . . . 1 . 1 . 1 . . Weapon 2 | . . . . . . 1 . . . . . . . . . . . . . . . . . . . 1 . . . . Parts Attached 395 | 7 6 1 5 20 6 12 9 . 9 . 4 12 6 35 5 23 13 9 5 3 4 5 26 9 44 21 39 14 23 20 Power 33 | . 1 . . 2 . 1 . . 1 . . 2 1 5 . 8 . . . . . . . 2 1 1 4 1 1 2 Engine 7 | . 1 . . 2 . . . . . . . 1 1 . . 2 . . . . . . . . . . . . . . Core 12 | . . . . . . 1 . . 1 . . 1 . 5 . 4 . . . . . . . . . . . . . . Reactor 14 | . . . . . . . . . . . . . . . . 2 . . . . . . . 2 1 1 4 1 1 2 Propulsion 20 | 2 2 . 1 6 1 1 2 . . . . . . . . . . . . . . . . . 5 . . . . . Treads 7 | 2 . . . 4 1 . . . . . . . . . . . . . . . . . . . . . . . . . Leg 7 | . . . . . . . 2 . . . . . . . . . . . . . . . . . 5 . . . . . Wheel . | . . . . . . . . . . . . . . . . . . . . . . . . . . . . . . . Hover . | . . . . . . . . . . . . . . . . . . . . . . . . . . . . . . . Flight 6 | . 2 . 1 2 . 1 . . . . . . . . . . . . . . . . . . . . . . . . Utility 199 | 2 1 . 2 2 1 4 2 . 5 . 3 5 2 17 4 9 10 9 4 3 1 4 14 6 23 11 19 10 15 11 Device 101 | 2 . . 1 1 1 2 1 . 1 . 2 4 2 7 . 6 5 3 . . 1 1 10 5 12 7 9 4 8 6 Storage 6 | . . . . 1 . . . . . . . . . . . 1 1 . 1 . . . . . 2 . . . . . Processor 11 | . . . 1 . . 1 . . 1 . . . . 2 . . . . . . . . . . 3 . 2 . . 1 Hackware 73 | . 1 . . . . 1 1 . 3 . 1 . . 8 4 2 . 6 3 3 . 2 3 . 6 4 8 6 7 4 Protection 8 | . . . . . . . . . . . . 1 . . . . 4 . . . . 1 1 1 . . . . . . Artifact . | . . . . . . . . . . . . . . . . . . . . . . . . . . . . . . . Weapon 143 | 3 2 1 2 10 4 6 5 . 3 . 1 5 3 13 1 6 3 . 1 . 3 1 12 1 15 9 16 3 7 7 Energy Gun 12 | . . . . . . . . . . . . . 1 . . 2 . . . . . . . 1 5 1 1 . . 1 Energy Cannon 21 | . . . . 1 1 2 2 . . . . . 1 . . . 1 . . . 2 . 3 . . 3 4 . 1 . Ballistic Gun 39 | 3 2 1 2 3 1 . . . . . . 3 . 6 . 1 . . . . . . 4 . 1 1 4 2 3 2 Ballistic Cannon 10 | . . . . 2 2 1 1 . 2 . 1 1 . . . . . . . . . . . . . . . . . . Launcher 3 | . . . . 1 . 2 . . . . . . . . . . . . . . . . . . . . . . . . Special Weapon 42 | . . . . . . 1 2 . 1 . . . . 6 1 2 2 . 1 . 1 1 5 . 5 3 5 1 3 2 Impact Weapon 4 | . . . . 3 . . . . . . . 1 . . . . . . . . . . . . . . . . . . Slashing Weapon 9 | . . . . . . . . . . . . . . . . . . . . . . . . . 4 1 2 . . 2 Piercing Weapon . | . . . . . . . . . . . . . . . . . . . . . . . . . . . . . . . Special Melee Weapon 3 | . . . . . . . . . . . . . 1 1 . 1 . . . . . . . . . . . . . . Unidentified Prototypes 11 | . . . . 4 1 . . . . . . 1 . 1 . . . . . . . . 1 1 . 1 . . . 1 Corrupted Parts 2 | . . . . . . . . . . . . . . . . . . . . . . . . . . . 1 . 1 . System Corruption 18 | . . . . . . . . . . . . . . . . . . . . . . . . . . . 9 . 9 . Parts Lost 100 | . . . . . . 1 . . 2 . 1 11 . 6 . 9 . . . . 1 1 6 2 18 5 16 2 6 13 Power 18 | . . . . . . . . . 1 . . 3 . 1 . 3 . . . . . . 1 . 2 . 2 1 . 4 Propulsion 6 | . . . . . . . . . . . . 1 . . . . . . . . . . 1 . 4 . . . . . Utility 37 | . . . . . . . . . . . . 2 . 2 . 3 . . . . 1 1 2 1 5 3 7 1 4 5 Weapon 39 | . . . . . . 1 . . 1 . 1 5 . 3 . 3 . . . . . . 2 1 7 2 7 . 2 4 Highest Loss Streak 5 | . . . . . . 1 . . 2 . 1 5 . 3 . 4 . . . . 1 1 2 2 3 3 3 2 3 5 To Critical Strikes 1 | . . . . . . . . . . . . . . . . . . . . . . . . . . . . . 1 . Average Slot Usage (%) 63 | . 82 100 100 100 76 65 63 61 55 46 55 66 42 56 56 57 55 56 57 56 57 53 55 54 61 65 63 63 65 68 Engine 3 | . 6 14 11 11 10 7 4 7 7 6 6 6 7 2 . 2 . . . . . . . . . . . 3 . . Core 1 | . . . . . . 1 2 . 1 . . 4 . 5 5 5 5 2 . . 4 4 . . . . . . . . Reactor 2 | . . . . . . . . . . . . . . . . . . 2 5 5 . . 4 7 5 8 7 2 6 8 Treads 4 | . 14 . . 31 16 2 . . . . . . . . . 4 5 3 . 1 5 5 4 2 . 2 1 . . 4 Leg 2 | . . . . . 1 1 8 . 4 6 6 6 2 1 4 . . . 5 3 . . . 1 3 . 1 4 3 . Flight 1 | . 13 28 33 2 1 6 1 7 2 . . . 1 3 . . . 1 . . . . . . . . . . . . Device 12 | . 14 14 11 11 11 14 13 15 11 6 8 15 12 11 6 11 18 15 7 5 7 6 15 20 19 21 11 7 11 6 Storage 5 | . . . . 10 11 7 7 7 7 6 6 6 5 5 5 5 5 5 5 5 5 5 5 4 4 4 4 4 4 4 Processor 1 | . . . 11 . . . . . 1 6 6 6 4 1 . . . . . . . . . . 2 . 6 1 . . Hackware 10 | . 7 14 11 11 2 . 1 . . . 5 2 . 6 15 9 9 13 22 25 23 16 12 1 8 11 13 25 22 28 Energy Gun 3 | . . . . . 2 9 12 7 1 . 7 3 . 2 5 5 . . . . . . . 2 7 1 2 . . . Energy Cannon 2 | . . . . 1 4 3 4 7 . . . . 2 2 . . 6 4 . . 6 5 4 2 . 4 4 . 2 . Ballistic Gun 3 | . 26 28 22 12 6 4 . . . . . 7 . 5 5 6 . . . . . . 1 . 1 3 1 3 9 10 Ballistic Cannon 2 | . . . . 3 7 2 3 7 6 6 2 2 . . . . . . 5 5 1 . 1 2 . 1 1 2 . . Special Weapon 1 | . . . . . . . 1 . 6 6 3 . . 3 4 1 3 5 5 5 2 4 2 . . 1 1 3 3 2 Peak Build Rating 194 | 7 9 10 18 24 40 53 58 58 65 61 62 73 81 103 107 114 116 126 114 114 140 140 147 143 147 169 179 174 194 186 Average Rating 100 | 3 6 9 16 20 32 49 52 58 60 61 56 63 61 88 91 94 111 116 109 108 124 132 140 133 120 154 163 168 173 172 On Entrance 86 | . 7 9 10 18 23 40 47 58 58 61 61 55 52 79 95 105 96 112 114 108 114 134 140 132 136 128 167 174 161 185 Naked Turns . | . . . . . . . . . . . . . . . . . . . . . . . . . . . . . . . Heaviest Build 207 | 4 8 8 10 56 57 62 61 61 79 78 78 87 76 84 72 86 83 83 121 127 130 130 136 139 132 156 164 151 207 177 Greatest Support 362 | 3 8 8 12 69 69 76 86 50 50 47 47 66 100 111 99 189 189 201 199 199 199 199 362 301 163 188 231 217 256 256 Greatest Overweight (x) 4 | 1 1 . . 2 4 1 1 1 1 1 1 2 1 1 . . . . . . . . . . 2 1 1 . . . Average Overweight (x) . | . . . . . . . . 1 1 1 1 . . . . . . . . . . . . . . . . . . . Largest Inventory Capacity 25 | 5 5 5 5 20 20 20 20 20 20 20 20 20 20 20 20 20 20 20 25 25 25 25 25 25 25 25 25 25 25 25 Average Capacity 22 | 5 5 5 5 19 20 20 20 20 20 20 20 20 20 20 20 20 20 20 22 25 25 25 25 25 24 25 25 25 25 25 Most Carried 25 | 4 5 5 5 20 20 20 20 20 20 20 20 20 20 20 20 20 20 20 23 25 25 25 25 25 25 25 25 25 25 25 Average Carried 20 | 2 4 4 4 16 18 19 19 20 19 20 18 19 18 19 19 19 19 19 21 23 24 24 24 22 22 24 23 22 23 22 Final Capacity 25 | 5 5 5 5 20 20 20 20 20 20 20 20 20 20 20 20 20 20 20 25 25 25 25 25 25 25 25 25 25 25 25 Final Carried 25 | 4 5 5 5 20 20 20 20 20 20 20 18 20 20 20 20 20 20 20 22 25 25 25 25 25 25 25 25 23 25 21 Scrap Engine Consumption 616 | . . . . . 62 19 22 . 24 . 2 26 4 66 10 44 2 14 3 15 21 3 23 21 72 26 81 6 41 9 Constructs Created 25 | . . . . . 3 1 . . . . 2 2 . 3 . 3 . . . . . . 1 . 4 . 3 . 2 1 Constructs Modified 238 | . . . . . 19 8 12 . 5 . 2 9 6 17 4 19 . 7 . 4 10 3 12 8 31 10 32 2 14 4 Class Distribution -------------------- 25% | Botlord-Construct 20% | Construct 16% | Bothacker-Construct 7% | Commander-Construct 6% | Mutant 5% | Botlord-Mutant 3% | Scavenger-Construct 3% | Botlord-Gunner 3% | Commander-Mutant Dominant Class ---------------- Scavenger-Mutant | -10/Materials Scavenger-Mutant | -10/Mines Scavenger-Mutant | -9/Materials Mutant | -9/Storage Construct | -9/Recycling Construct | -7/Factory Construct | -7/Garrison Bothacker-Construct | -7/Factory Bothacker-Construct | -7/Garrison Bothacker-Construct | -6/Factory Bothacker-Construct | -6/Waste Construct | -6/Factory Construct | -5/Factory Bothacker-Construct | -5/Garrison Bothacker-Construct | -5/Factory Botlord-Construct | -5/Garrison Botlord-Construct | -4/Factory Botlord-Construct | -4/Garrison Botlord-Construct | -4/Factory Commander-Construct | -4/Extension Commander-Construct | -4/Cetus Bothacker-Construct | -4/Archives Construct | -4/Hub_04(d) Scavenger-Mutant | -3/Research Botlord-Mutant | -3/Garrison Botlord-Tank | -2/Research Botlord-Construct | -2/Garrison Botlord-Gunner | -1/Access Botlord-Construct | -1/Garrison Botlord-Construct | -1/Access Resources | -11 -10 -10 -9 -9 -9 -7 -7 -7 -7 -6 -6 -6 -5 -5 -5 -5 -4 -4 -4 -4 -4 -4 -4 -3 -3 -2 -2 -1 -1 -1 ----------- Run | Yrd Mat Min Mat Sto Rec Fac Gar Fac Gar Fac Was Fac Fac Gar Fac Gar Fac Gar Fac Ext Cet Arc Hub Res Gar Res Gar Acc Gar Acc Matter Collected 12517 | 274 139 89 74 310 257 278 260 . 331 . 338 488 26 1346 250 785 53 765 18 728 193 77 464 61 704 694 1215 400 1120 780 Remotely 538 | . . . . . . . . . . . . . . . . . . 297 . . . . . . . . . . . 241 Salvage Created 16586 | 120 161 . 57 319 886 714 482 . 220 . 156 1018 26 1611 372 1052 139 262 85 224 79 40 2070 292 2031 768 1831 163 840 568 Parts 719 | 8 20 . 3 29 35 46 23 . 10 . . 56 3 61 10 28 5 11 2 8 5 3 102 12 61 47 67 4 28 32 Haulers Intercepted 4 | . . . . 1 . 1 . . . . . 1 . . . . . . . . . . 1 . . . . . . . Recyclers Shooed 9 | 2 . . . 1 1 . . . . . . . . . . . . . 1 1 . . 1 . . . . 2 . . Parts Field Recycled . | . . . . . . . . . . . . . . . . . . . . . . . . . . . . . . . Retrieved Matter . | . . . . . . . . . . . . . . . . . . . . . . . . . . . . . . . Parts Self-Destructed . | . . . . . . . . . . . . . . . . . . . . . . . . . . . . . . . Prevented . | . . . . . . . . . . . . . . . . . . . . . . . . . . . . . . . Kills | -11 -10 -10 -9 -9 -9 -7 -7 -7 -7 -6 -6 -6 -5 -5 -5 -5 -4 -4 -4 -4 -4 -4 -4 -3 -3 -2 -2 -1 -1 -1 ------- Run | Yrd Mat Min Mat Sto Rec Fac Gar Fac Gar Fac Was Fac Fac Gar Fac Gar Fac Gar Fac Ext Cet Arc Hub Res Gar Res Gar Acc Gar Acc Combat Hostiles Destroyed 210 | . 4 . 1 8 3 11 13 . 6 . 1 16 . 16 5 18 2 4 1 2 1 . 20 7 26 11 18 2 6 8 Melee 13 | . . . . . . . . . . . . . . 1 . 3 . . . . . . . 1 5 . 2 . . 1 Guns 119 | . 4 . 1 2 2 9 9 . . . 1 12 . 9 5 14 . . . . . . 4 6 17 5 5 2 5 7 Cannons 61 | . . . . 1 1 . 4 . 6 . . 4 . 6 . . 2 3 1 2 1 . 16 . . 4 9 . 1 . AOE 7 | . . . . 5 . 2 . . . . . . . . . . . . . . . . . . . . . . . . Classes Destroyed 22 | 2 4 . . 2 3 4 . . . . 1 2 . 1 . 1 . . 1 . . . 1 . . . . . . . Worker 18 | . 2 . 1 5 . 3 . . . . . 2 . . . . . . . . . . 5 . . . . . . . Builder 14 | . . . . 2 2 2 . . . . . 2 . . . . . . 1 1 . . 4 . . . . . . . Tunneler 5 | 3 . . . . . . . . . . . 1 . . . . . . . . . . 1 . . . . . . . Hauler 4 | . . . . 1 . 1 . . . . . 1 . . . . . . . . . . 1 . . . . . . . Recycler 16 | 1 . . . 1 8 2 . . . . . 1 . . 1 . . . . . . . 2 . . . . . . . Operator 4 | . 2 . . . . . . . . . . . 1 . . . . . . . . . . . . . . . . 1 Watcher 10 | . . . . . . 2 . . 1 . . 1 . . . . 1 . . 1 . . 3 . 1 . . . . . Swarmer 23 | . 3 . . 4 . . 3 . . . . 3 . . 1 1 . . . . . . 1 5 . . 1 . 1 . Cutter 13 | . . . . . . . . . . . . . . 3 . . . . . . . . . . 4 . 4 . . 2 Saboteur 1 | . . . . . . . . . . . . . . . . 1 . . . . . . . . . . . . . . Grunt 79 | . 1 . 1 4 . 7 8 . 1 . . 7 . 6 4 13 . . . 1 . . 5 2 5 3 8 . 3 . Brawler 6 | . . . . . . . . . . . . 1 . 1 . 1 . . . . . . . . 2 . 1 . . . Duelist 6 | . . . . . . 1 1 . . . . . . 1 . . . . . . . . . . 3 . . . . . Sentry 16 | . . . . . 1 . . . 1 . . . . 1 . . . . . 1 . . 5 . 5 . . . 2 . Specialist 4 | . . . . . . . . . . . . 2 . . . . . . . . . . . . . . . 2 . . Hunter 21 | . . . . . . 1 . . . . . 2 . . . 2 . 2 . . . . 3 . 4 . . . 3 4 Programmer 34 | . . . . . . 2 1 . 3 . . 1 . 5 . . 2 2 . . . . 4 . 1 6 5 . . 2 Heavy 3 | . . . . . . . . . . . . . . . . . . . . . . . 1 . . 2 . . . . Behemoth 4 | . . . . . . . . . . . . . . . . . . . 1 . . . . . 2 . . . 1 . Compactor 1 | . . . . . . . . . . . 1 . . . . . . . . . . . . . . . . . . . Cetus Guard 1 | . . . . . . . . . . . . . . . . . . . . . 1 . . . . . . . . . Lightning 2 | . . . . . . . . . . . . . . . . . . . . . . . 2 . . . . . . . Scientist 1 | . . . . . 1 . . . . . . . . . . . . . . . . . . . . . . . . . Scrapper 2 | . . . . . 2 . . . . . . . . . . . . . . . . . . . . . . . . . Butcher 1 | . . . . . . . . . 1 . . . . . . . . . . . . . . . . . . . . . Guerrilla 1 | . . . . . . . . . 1 . . . . . . . . . . . . . . . . . . . . . Best Kill Streak 14 | 3 4 . 1 13 7 5 3 . 4 . 1 4 . 4 4 3 1 3 2 1 1 . 14 5 4 3 4 2 3 3 Combat Bots Only 7 | . 3 . 1 7 2 5 3 . 4 . 1 3 . 4 3 3 1 3 1 1 1 . 4 5 4 3 4 2 3 3 Max Kills in Single Turn 11 | 1 1 . 1 7 1 2 1 . 1 . 1 2 1 2 1 1 1 1 1 1 1 . 11 1 1 2 1 1 2 1 Gunslinging 1 | . . . . . . . . . . . . 1 . . . . . . . . . . . . . . . . . . Exploded 4 | . . . . 4 . 1 . . . . . . . . . . . . . . . . . . . . . . . . Melee 1 | . . . . . . . . . . . . . . 1 . 1 . . . . . . . 1 1 . 1 . . 1 Uniques/NPCs Destroyed . | . . . . . . . . . . . . . . . . . . . . . . . . . . . . . . . Combat | -11 -10 -10 -9 -9 -9 -7 -7 -7 -7 -6 -6 -6 -5 -5 -5 -5 -4 -4 -4 -4 -4 -4 -4 -3 -3 -2 -2 -1 -1 -1 -------- Run | Yrd Mat Min Mat Sto Rec Fac Gar Fac Gar Fac Was Fac Fac Gar Fac Gar Fac Gar Fac Ext Cet Arc Hub Res Gar Res Gar Acc Gar Acc Hostile Shots Fired 2797 | . 17 . 14 14 7 46 59 12 91 . . 239 . 211 41 285 9 80 5 21 53 10 353 65 425 92 263 46 168 171 Missed 821 | . 3 . 5 4 3 15 17 5 22 . . 59 . 77 7 68 2 18 2 9 21 5 97 23 139 33 79 15 59 34 Damage Taken 44704 | . 181 . 110 126 87 517 705 100 966 . 43 3459 . 2841 632 3704 146 1207 126 314 831 1605 6534 985 7010 1919 4932 733 1630 3261 Core 3954 | . 28 . 49 . 22 22 39 . 223 . . 543 . 260 61 154 23 148 . 25 82 44 268 . 755 271 518 64 109 246 Absorbed by Shields 1545 | . . . . . . 61 27 . . . . . . 26 . 380 . . . 40 27 . 144 . 140 8 15 . 677 . Reduced by Siege Mode 117 | . . . . . . . . . . . . . . . . 117 . . . . . . . . . . . . . . Ignored by Resistances 926 | . . . . . . . . . . . . . . . . . . . . . . . . . . 376 473 77 . . Regen/Repaired (Parts) 19668 | . . . . . 55 112 561 . 372 . 57 394 289 1630 851 2421 . 833 . 276 863 349 2820 504 2841 602 2238 . 898 702 Core Remaining (%) 62 | 100 . 88 . . 82 . . . 59 . . 36 . . . 52 . . . . . . 48 . 41 . 45 . . 73 Volleys Fired 1491 | 10 18 . 6 16 24 40 54 . 53 . 40 89 3 157 41 101 19 49 21 99 37 7 114 13 130 61 104 36 88 61 Largest 4 | 2 2 . 2 2 2 3 3 . 2 . 2 3 1 3 2 3 2 1 1 1 2 2 2 2 3 4 4 2 4 3 Hottest 501 | 40 40 . 46 62 97 173 195 . 88 . 126 126 90 165 61 151 204 84 84 84 211 211 353 123 501 250 313 179 200 137 Shots Fired 2618 | 18 36 . 12 26 46 100 115 . 60 . 66 164 3 259 58 227 25 49 21 99 49 8 191 26 287 135 212 47 168 111 Gun 1561 | 18 36 . 12 16 15 69 70 . 10 . 56 134 . 184 36 219 . . . . . . 56 15 271 49 75 22 104 94 Cannon 701 | . . . . 5 31 27 44 . 34 . 3 30 3 46 . . 15 30 2 48 46 2 112 11 . 66 116 4 26 . Launcher 8 | . . . . 5 . 3 . . . . . . . . . . . . . . . . . . . . . . . . Special 348 | . . . . . . 1 1 . 16 . 7 . . 29 22 8 10 19 19 51 3 6 23 . 16 20 21 21 38 17 Kinetic 1248 | 18 36 . 12 21 33 41 26 . 34 . 59 164 . 184 19 131 . . 2 48 12 . 76 13 12 71 54 26 96 60 Thermal 868 | . . . . . 1 44 67 . . . . . 3 46 17 88 15 30 . . 34 2 92 13 259 28 82 . 23 24 Explosive 8 | . . . . 5 . 3 . . . . . . . . . . . . . . . . . . . . . . . . Electromagnetic 146 | . . . . . 12 11 21 . 10 . . . . . . . . . . . . . . . . 16 55 . 11 10 Robot Hit Streak 35 | 4 7 . 3 7 10 11 10 . 7 . 11 14 3 35 12 15 7 13 15 22 5 5 14 4 17 16 18 7 8 9 Robot Miss Streak 11 | 1 4 . 2 1 4 3 4 . 3 . 5 8 . 6 2 3 1 3 2 4 3 1 7 1 4 4 4 4 11 11 Penetration Max 1 | . . . . . . 1 . . . . 1 1 . 1 1 1 . . . . . . 1 . . 1 1 . 1 . Secondary Targets 14 | . . . . . . 2 1 . . . . 2 . . . 2 . . . . . . . . 5 . . . . 2 Max Gunslinging Chain 1 | . . . . . . 1 1 . . . . 1 . . . 1 . . . . . . . . 1 . . . . 1 Shots Hit Robots 1711 | 10 21 . 11 18 25 63 73 . 34 . 58 110 3 171 44 133 19 34 16 67 16 7 124 15 213 91 152 26 79 78 Core Hits 642 | 5 10 . 4 23 17 40 28 . 10 . 11 72 1 53 11 46 3 4 2 8 7 2 63 7 71 24 56 5 31 28 Critical Kills 14 | . . . . . . . . . . . . . . 1 1 3 . . . . . . 4 . . 1 2 . 2 . Critical Parts Destroyed 10 | . . . . . . . . . . . . . . 3 2 . . . . . . . 1 . 1 . 2 . 1 . Critical Strikes 69 | . . . . 1 . 1 5 . 1 . . 6 . 4 3 5 . 1 . . 1 . 5 . 17 2 13 . 3 1 Burn 15 | . . . . . . . 1 . . . . . . . . 2 . 1 . . 1 . . . 9 . 1 . . . Meltdown 1 | . . . . . . . . . . . . . . . . . . . . . . . . . . 1 . . . . Destroy 23 | . . . . . . . . . . . . . . 4 3 3 . . . . . . 5 . 1 . 4 . 3 . Blast 13 | . . . . 1 . 1 3 . 1 . . 6 . . . . . . . . . . . . . 1 . . . . Corrupt 3 | . . . . . . . 1 . . . . . . . . . . . . . . . . . . . 2 . . . Sever 14 | . . . . . . . . . . . . . . . . . . . . . . . . . 7 . 6 . . 1 Melee Attacks 97 | . . . . 7 . . . . . . . . . 1 . . . . . . . . . . 34 . 29 2 2 22 Impact 7 | . . . . 7 . . . . . . . . . . . . . . . . . . . . . . . . . . Slashing 89 | . . . . . . . . . . . . . . . . . . . . . . . . . 34 . 29 2 2 22 Piercing . | . . . . . . . . . . . . . . . . . . . . . . . . . . . . . . . Sneak Attacks 2 | . . . . . . . . . . . . . . . . . . . . . . . . . . . . . . 2 Combat Hostiles . | . . . . . . . . . . . . . . . . . . . . . . . . . . . . . . . Follow-up Attacks . | . . . . . . . . . . . . . . . . . . . . . . . . . . . . . . . Damage Inflicted 47826 | 152 289 . 134 1151 502 1555 1365 . 1115 . 1490 2286 106 3921 659 3003 622 851 105 1093 828 93 7704 541 6498 2613 5317 330 1718 1785 Guns 23544 | 152 289 . 134 197 116 646 688 . 161 . 1320 1852 . 2821 659 2545 . . . . . . 1169 342 5664 937 1184 293 1267 1108 Cannons 17794 | . . . . 55 374 429 677 . 954 . 170 434 104 1066 . . 622 851 35 1026 828 93 5050 167 . 1676 2695 37 451 . Explosions 2861 | . . . . 891 . 438 . . . . . . . . . . . . 70 . . . 1462 . . . . . . . Melee 2563 | . . . . . . . . . . . . . . . . . . . . . . . . . 753 . 1154 . . 656 Ramming 1064 | . . . . 8 12 42 . . . . . . 2 34 . 458 . . . 67 . . 23 32 81 . 284 . . 21 Kinetic 19897 | 152 289 . 134 252 303 420 510 . 954 . 1490 2286 . 2821 392 1427 . . 35 1026 405 . 1687 209 290 1479 927 330 1279 800 Thermal 19135 | . . . . . . 433 688 . . . . . 104 1066 267 1118 622 851 70 . 423 93 4538 300 5374 835 1892 . 178 283 Explosive 1329 | . . . . 891 . 438 . . . . . . . . . . . . . . . . . . . . . . . . Electromagnetic 3838 | . . . . . 187 222 167 . 161 . . . . . . . . . . . . . 1456 . . 299 1060 . 261 25 Impact . | . . . . . . . . . . . . . . . . . . . . . . . . . . . . . . . Slashing 2563 | . . . . . . . . . . . . . . . . . . . . . . . . . 753 . 1154 . . 656 Piercing . | . . . . . . . . . . . . . . . . . . . . . . . . . . . . . . . Highest Corruption 38 | . . . . . 1 . 3 3 8 . 34 38 . 7 7 8 . . . . . . 27 . 6 . 12 5 18 23 Average Corruption 8 | . . . . . 1 . 2 3 5 . 15 36 . 6 7 7 . . . . . . 12 . 5 . 3 3 14 20 Corruption Purged . | . . . . . . . . . . . . . . . . . . . . . . . . . . . . . . . Corruption Blocked . | . . . . . . . . . . . . . . . . . . . . . . . . . . . . . . . Effects 404 | . . . . . 19 . 15 1 17 . 22 60 . 46 9 46 . . . . . . 7 . 30 . 42 . 53 37 Message Errors 105 | . . . . . 5 . 3 . 5 . 5 10 . 12 5 12 . . . . . . 1 . 9 . 10 . 16 12 Matter Fused 96 | . . . . . 1 . 4 . 2 . 5 18 . 11 . 17 . . . . . . 2 . 9 . 8 . 14 5 Heat Flow Errors 49 | . . . . . 1 . 2 . 1 . 1 8 . 9 1 5 . . . . . . . . 3 . 10 . 6 2 Energy Discharges 45 | . . . . . 5 . 1 . 2 . 4 4 . 4 1 5 . . . . . . 2 . 2 . 7 . 6 2 Parts Rejected 5 | . . . . . . . . . . . 2 . . . . . . . . . . . . . 1 . 1 . . 1 Parts Fused 4 | . . . . . . . 1 . 2 . . . . . . . . . . . . . . . . . 1 . . . Data Loss (minor) 41 | . . . . . 4 . 3 . 4 . 3 4 . 3 1 5 . . . . . . . . 4 . 4 . 4 2 Data Loss (major) 12 | . . . . . 1 . 1 . 1 . . 1 . . 1 . . . . . . . . . 2 . 1 . 2 2 Misfires 8 | . . . . . 2 . . . . . . 2 . 2 . . . . . . . . . . . . . . 1 1 Alerts 5 | . . . . . . . . 1 . . . 1 . 1 . . . . . . . . . . . . . . 2 . Misdirections 4 | . . . . . . . . . . . . 2 . . . . . . . . . . 1 . . . . . 1 . Weapon Failures 30 | . . . . . . . . . . . 2 10 . 4 . 2 . . . . . . 1 . . . . . 1 10 Overload Shots 38 | . . . . . . . . . . . . . . . . . . . . . . . 14 . 24 . . . . . Effects 3 | . . . . . . . . . . . . . . . . . . . . . . . 2 . 1 . . . . . Energy Bleed 1 | . . . . . . . . . . . . . . . . . . . . . . . . . 1 . . . . . Heat Surge 1 | . . . . . . . . . . . . . . . . . . . . . . . 1 . . . . . . . Short Circuit 1 | . . . . . . . . . . . . . . . . . . . . . . . 1 . . . . . . . Overflow Damage 1028 | . . . . 62 . 11 22 . 246 . . . . 50 . 67 74 48 . 6 1 . 329 . . 48 21 . . 43 Projectiles 782 | . . . . . . 11 22 . 246 . . . . 50 . . 74 48 . 6 1 . 256 . . 48 20 . . . Explosions 135 | . . . . 62 . . . . . . . . . . . . . . . . . . 73 . . . . . . . Melee 111 | . . . . . . . . . . . . . . . . 67 . . . . . . . . . . 1 . . 43 Knockbacks 56 | . . . . 1 2 2 10 . 8 . . 2 . . . 4 . . . 4 . . 11 4 1 6 . 1 . . Impact 6 | . . . . 1 . . . . . . . . . . . 4 . . . . . . . . 1 . . . . . Kinetic 46 | . . . . . 2 2 10 . 6 . . 2 . . . . . . . 4 . . 11 3 . 5 . 1 . . Secondary 4 | . . . . . . . . . 2 . . . . . . . . . . . . . . 1 . 1 . . . . Self-Inflicted Damage 244 | . . . . . 2 46 . . . . . . . . . 100 . . . . . . 96 . . . . . . . Shots 3 | . . . . . . 2 . . . . . . . . . . . . . . . . 1 . . . . . . . Rammed 36 | . . . . 1 2 . . . . . . . 2 4 . 11 . . . . . . 1 2 12 . . . . 1 Targets Rammed 69 | . . . . 1 2 2 . . . . . . 2 5 . 13 . . . 4 . . 1 3 13 . 22 . . 1 Kicked 28 | . . . . . . 2 . . . . . . . . . . . . . 4 . . . . . . 22 . . . Crushed 5 | . . . . . . . . . . . . . . 1 . 2 . . . . . . . 1 1 . . . . . Highest Temperature 551 | . . . 7 4 198 135 363 . 374 . 318 228 . 239 118 329 170 116 54 239 348 150 371 26 551 48 392 528 544 337 Average Temperature 110 | . . . 2 3 51 34 133 . 208 . 108 61 . 79 53 90 99 48 28 88 118 84 103 12 125 24 87 113 155 133 Received Heat Transfer 5443 | . 48 . 42 51 21 199 198 . 396 . 12 612 . 364 279 1198 . 157 18 62 18 . 468 45 580 81 585 . . 9 Effects 36 | . . . . . . . 1 . 1 . 1 . . . . 1 . . . . 1 . . . 3 . 3 4 19 2 Shutdowns 11 | . . . . . . . . . . . . . . . . . . . . . 1 . . . 1 . 2 2 4 1 Energy Bleed 5 | . . . . . . . . . . . . . . . . 1 . . . . . . . . . . . . 3 1 Interference 13 | . . . . . . . 1 . 1 . . . . . . . . . . . . . . . . . . 1 10 . Matter Decay 2 | . . . . . . . . . . . . . . . . . . . . . . . . . 1 . . . 1 . Short Circuit 1 | . . . . . . . . . . . . . . . . . . . . . . . . . . . . . 1 . Damage (minor) 3 | . . . . . . . . . . . 1 . . . . . . . . . . . . . . . 1 1 . . Damage (core) 1 | . . . . . . . . . . . . . . . . . . . . . . . . . 1 . . . . . Siege Activations 1 | . . . . . . . . . . . . . . . . 1 . . . . . . . . . . . . . . Total Turns 27 | . . . . . . . . . . . . . . . . 27 . . . . . . . . . . . . . . Longest Duration 27 | . . . . . . . . . . . . . . . . 27 . . . . . . . . . . . . . . Robots Corrupted 5 | . . . . . . . . . . . . . . . . 1 . . . . . . 1 . . 1 2 . . . Combat Hostiles 4 | . . . . . . . . . . . . . . . . 1 . . . . . . . . . 1 2 . . . Parts Fried 14 | . . . . . . . 2 . . . . . . . . . . . . . . . 7 . . . 3 . 2 . Impact Corruptions 8 | . . . . . . . . . 2 . . . . . . 4 . . . . . . . . . . 1 . . 1 Robots Melted 6 | . . . . . . . . . . . . . . . . . . 1 . . . . . . 4 1 . . . . Combat Hostiles 6 | . . . . . . . . . . . . . . . . . . 1 . . . . . . 4 1 . . . . Parts Melted 40 | . . . . . . 1 2 . . . . . . . . 6 1 4 . . . . 3 . 18 2 2 . 1 . Heat Transferred 21851 | . . . . . . 1036 1665 . . . . . 111 1036 444 2069 485 900 50 . 407 74 2609 370 7252 740 1753 . 350 500 Parts Sabotaged 4 | . . . . . . . . . . . . . . . . 2 . . . . . . 2 . . . . . . . Parts Stolen . | . . . . . . . . . . . . . . . . . . . . . . . . . . . . . . . Parts Stripped . | . . . . . . . . . . . . . . . . . . . . . . . . . . . . . . . Power Chain Reactions 1 | . . . . . . . . . . . . . . . . . . . . . . . 1 . . . . . . . Alert | -11 -10 -10 -9 -9 -9 -7 -7 -7 -7 -6 -6 -6 -5 -5 -5 -5 -4 -4 -4 -4 -4 -4 -4 -3 -3 -2 -2 -1 -1 -1 ------- Run | Yrd Mat Min Mat Sto Rec Fac Gar Fac Gar Fac Was Fac Fac Gar Fac Gar Fac Gar Fac Ext Cet Arc Hub Res Gar Res Gar Acc Gar Acc Peak Influence 1519 | 20 288 127 183 418 83 309 549 332 624 327 115 193 105 831 603 933 516 420 232 287 240 56 748 499 1519 911 1349 820 450 295 Initial 854 | . 13 112 49 76 7 100 85 287 232 327 114 . 59 21 436 422 489 246 220 28 105 24 . 392 374 854 417 808 253 269 Average 366 | 6 128 117 102 114 11 127 395 288 499 327 90 82 68 393 518 730 445 346 142 81 108 32 196 433 796 714 783 443 313 136 Maximum Alert Level 4 | . 1 . . 2 . 1 2 1 2 1 . . . 3 2 3 2 2 1 1 1 . 3 2 4 3 4 3 2 1 Low Security (%) 44 | 100 84 100 100 80 100 96 22 . . . 100 100 100 38 . . . . 73 91 96 100 68 . . . . . . 72 Level 1 18 | . 15 . . 16 . 3 20 100 25 100 . . . 24 . . 30 75 26 8 3 . 20 46 26 . . 70 95 27 Level 2 18 | . . . . 2 . . 57 . 74 . . . . 10 100 42 69 24 . . . . 4 53 15 44 44 1 4 . Level 3 14 | . . . . . . . . . . . . . . 27 . 57 . . . . . . 6 . 36 55 40 28 . . Level 4 3 | . . . . . . . . . . . . . . . . . . . . . . . . . 21 . 15 . . . Level 5 . | . . . . . . . . . . . . . . . . . . . . . . . . . . . . . . . High Security . | . . . . . . . . . . . . . . . . . . . . . . . . . . . . . . . Max Security . | . . . . . . . . . . . . . . . . . . . . . . . . . . . . . . . Squads Dispatched 41 | . 2 . . . . 2 . . . . . 4 1 . 3 . 2 . 1 1 . . 7 3 . 9 . 3 . 3 Investigation 6 | . 1 . . . . . . . . . . . 1 . 1 . . . . . . . 1 . . 2 . . . . Extermination 9 | . . . . . . 1 . . . . . 1 . . . . 2 . . . . . 2 . . 2 . . . 1 Reinforcement 18 | . 1 . . . . 1 . . . . . 3 . . 1 . . . 1 1 . . 2 3 . 1 . 2 . 2 Assault 3 | . . . . . . . . . . . . . . . 1 . . . . . . . 1 . . 1 . . . . Garrison 5 | . . . . . . . . . . . . . . . . . . . . . . . 1 . . 3 . 1 . . Intercept . | . . . . . . . . . . . . . . . . . . . . . . . . . . . . . . . Searches Triggered . | . . . . . . . . . . . . . . . . . . . . . . . . . . . . . . . Construction Impeded 3 | . . . . . . . . . . . . . . . 1 . . . . 1 . . 1 . . . . . . . Haulers Reinforced 2 | . . . . . . . . . . . . 1 . . . . . . . . . . . . . . . . . 1 Active Scanning Responses . | . . . . . . . . . . . . . . . . . . . . . . . . . . . . . . . Cargo Convoy Interrupts . | . . . . . . . . . . . . . . . . . . . . . . . . . . . . . . . Alert ID Control Effect 70 | . . . . . . . . . . . . . . . . 2 . 4 . 6 3 1 2 . 4 . 7 18 8 15 Stealth | -11 -10 -10 -9 -9 -9 -7 -7 -7 -7 -6 -6 -6 -5 -5 -5 -5 -4 -4 -4 -4 -4 -4 -4 -3 -3 -2 -2 -1 -1 -1 --------- Run | Yrd Mat Min Mat Sto Rec Fac Gar Fac Gar Fac Was Fac Fac Gar Fac Gar Fac Gar Fac Ext Cet Arc Hub Res Gar Res Gar Acc Gar Acc Distress Signals 26 | . 1 . 3 . 1 1 . 1 . . . 2 . . 1 . . . 1 2 2 . 3 2 3 2 . . . 1 Communications Jammed 29 | . . . . . . . . . . . . . . . . . . . . . . . . . . 29 . . . . Distress Signals 19 | . . . . . . . . . . . . . . . . . . . . . . . . . . 19 . . . . Times Spotted 528 | . 11 . 9 12 5 18 15 2 17 . 5 26 2 40 25 30 3 20 7 26 10 21 45 12 40 27 40 9 34 17 Peak Tracking Total 17 | . 5 . 6 8 4 4 4 4 7 . 4 5 1 10 7 5 2 5 3 5 5 17 7 5 5 6 5 5 6 5 Tactical Retreats 32 | . 2 . 2 . . . 3 1 1 . . 5 . 1 2 . . . . 2 . . 4 . 3 2 2 . 1 1 Traps | -11 -10 -10 -9 -9 -9 -7 -7 -7 -7 -6 -6 -6 -5 -5 -5 -5 -4 -4 -4 -4 -4 -4 -4 -3 -3 -2 -2 -1 -1 -1 ------- Run | Yrd Mat Min Mat Sto Rec Fac Gar Fac Gar Fac Was Fac Fac Gar Fac Gar Fac Gar Fac Ext Cet Arc Hub Res Gar Res Gar Acc Gar Acc Traps Triggered 32 | . 1 1 . . . 1 2 . 1 1 . 1 . 8 2 . 2 1 2 1 . . 3 . 2 . 2 . 1 . Indirectly 2 | . . . . . . . . . . . . . . . . . . . . . . . 2 . . . . . . . Trap Hack Attempts . | . . . . . . . . . . . . . . . . . . . . . . . . . . . . . . . Triggered . | . . . . . . . . . . . . . . . . . . . . . . . . . . . . . . . Disarmed . | . . . . . . . . . . . . . . . . . . . . . . . . . . . . . . . Reprogrammed . | . . . . . . . . . . . . . . . . . . . . . . . . . . . . . . . Reused . | . . . . . . . . . . . . . . . . . . . . . . . . . . . . . . . Traps Extracted . | . . . . . . . . . . . . . . . . . . . . . . . . . . . . . . . Installed . | . . . . . . . . . . . . . . . . . . . . . . . . . . . . . . . Triggered . | . . . . . . . . . . . . . . . . . . . . . . . . . . . . . . . Machines | -11 -10 -10 -9 -9 -9 -7 -7 -7 -7 -6 -6 -6 -5 -5 -5 -5 -4 -4 -4 -4 -4 -4 -4 -3 -3 -2 -2 -1 -1 -1 ---------- Run | Yrd Mat Min Mat Sto Rec Fac Gar Fac Gar Fac Was Fac Fac Gar Fac Gar Fac Gar Fac Ext Cet Arc Hub Res Gar Res Gar Acc Gar Acc Machines Disabled 54 | . . . . 7 . . 2 . . . . . . 5 . 3 . 4 2 1 . 1 10 . 5 . 6 2 3 3 Max in Single Turn 8 | . . . . 2 . . 1 . . . . . . 1 . 1 . 1 1 . . . 8 . 1 . 1 1 1 1 Garrison Access 1 | . . . . . . . . . . . . . . . . . . . . . . . 1 . . . . . . . Garrison Relay 21 | . . . . . . . 2 . . . . . . 3 . 2 . 2 . . . . . . 4 . 5 . 3 . Network Hub 1 | . . . . . . . . . . . . . . . . . . . . . . . 1 . . . . . . . Machines Repaired . | . . . . . . . . . . . . . . . . . . . . . . . . . . . . . . . Machines Dismantled . | . . . . . . . . . . . . . . . . . . . . . . . . . . . . . . . Machines Sabotaged . | . . . . . . . . . . . . . . . . . . . . . . . . . . . . . . . Overloaded Fab Kills . | . . . . . . . . . . . . . . . . . . . . . . . . . . . . . . . Hacking | -11 -10 -10 -9 -9 -9 -7 -7 -7 -7 -6 -6 -6 -5 -5 -5 -5 -4 -4 -4 -4 -4 -4 -4 -3 -3 -2 -2 -1 -1 -1 --------- Run | Yrd Mat Min Mat Sto Rec Fac Gar Fac Gar Fac Was Fac Fac Gar Fac Gar Fac Gar Fac Ext Cet Arc Hub Res Gar Res Gar Acc Gar Acc Machines Accessed 67 | . 3 1 2 11 11 4 1 1 2 . . 2 2 1 2 2 3 . 3 4 1 . 2 1 1 4 1 1 1 . Terminals 41 | . 2 . 1 9 6 2 1 . 2 . . 1 1 1 . 2 1 . 2 3 1 . 1 . 1 2 1 . 1 . Fabricators 2 | . . . . . . 1 . . . . . . . . . . . . . . . . . . . 1 . . . . Repair Stations 2 | . . . . . . . . . . . . . . . 1 . 1 . . . . . . . . . . . . . Recycling Units 9 | . 1 . . 1 4 . . . . . . 1 . . . . . . 1 1 . . . . . . . . . . Scanalyzers 1 | . . . 1 . . . . . . . . . . . . . . . . . . . . . . . . . . . Garrison Access 10 | . . . . 1 . 1 . 1 . . . . 1 . 1 . 1 . . . . . 1 1 . 1 . 1 . . Total Hacks 164 | . 9 1 8 33 38 9 1 1 5 . . 3 4 2 5 4 3 . 5 10 1 . 4 1 3 11 1 1 1 . Successful 90 | . 3 1 3 18 29 2 1 1 2 . . . 3 1 4 1 2 . 3 5 1 . 1 1 1 4 1 1 1 . Failed 73 | . 6 . 5 14 9 7 . . 3 . . 3 1 1 1 3 1 . 2 5 . . 3 . 2 7 . . . . Catastrophic 12 | . . . . 1 . 1 . . 1 . . 2 . 1 . 1 1 . . 1 . . 1 . . 2 . . . . Database Lockouts 1 | . . . . 1 . . . . . . . . . . . . . . . . . . . . . . . . . . Manual 96 | . 8 . 4 24 33 4 . . . . . . 3 . 1 . 1 . 3 5 1 . 3 . . 6 . . . . Terminals 101 | . 8 . 4 30 18 5 1 . 5 . . 1 2 2 . 4 1 . 3 6 1 . 1 . 3 4 1 . 1 . Fabricators 6 | . . . . . . 2 . . . . . . . . . . . . . . . . . . . 4 . . . . Repair Stations 5 | . . . . . . . . . . . . . . . 4 . 1 . . . . . . . . . . . . . Recycling Units 28 | . 1 . . 1 18 . . . . . . 2 . . . . . . 2 4 . . . . . . . . . . Scanalyzers 4 | . . . 4 . . . . . . . . . . . . . . . . . . . . . . . . . . . Garrison Access 17 | . . . . 2 . 2 . 1 . . . . 2 . 1 . 1 . . . . . 3 1 . 3 . 1 . . Terminal Hacks 30 | . 1 1 . 7 7 . 1 . 2 . . . . 1 . 1 1 . 2 2 1 . . . 1 . 1 . 1 . Part Schematic 2 | . . . . 1 1 . . . . . . . . . . . . . . . . . . . . . . . . . Robot Schematic 2 | . 1 . . . . . . . . . . . . . . . . . 1 . . . . . . . . . . . Robot Analysis 5 | . . . . 1 4 . . . . . . . . . . . . . . . . . . . . . . . . . Open Door 8 | . . 1 . 1 . . . . 1 . . . . . . . . . 1 2 1 . . . . . . . 1 . Emergency Access Points 5 | . . . . . . . 1 . 1 . . . . 1 . 1 . . . . . . . . . . 1 . . . Terminal Index 1 | . . . . 1 . . . . . . . . . . . . . . . . . . . . . . . . . . Unreport Threat 2 | . . . . 2 . . . . . . . . . . . . . . . . . . . . . . . . . . Maintenance Status 1 | . . . . 1 . . . . . . . . . . . . . . . . . . . . . . . . . . Zone Layout 1 | . . . . . . . . . . . . . . . . . 1 . . . . . . . . . . . . . Garrison Registry 1 | . . . . . . . . . . . . . . . . . . . . . . . . . 1 . . . . . Release Object 2 | . . . . . 2 . . . . . . . . . . . . . . . . . . . . . . . . . Fabricator Hacks 1 | . . . . . . . . . . . . . . . . . . . . . . . . . . 1 . . . . Load Schematic 1 | . . . . . . . . . . . . . . . . . . . . . . . . . . 1 . . . . Repair Station Hacks 2 | . . . . . . . . . . . . . . . 2 . . . . . . . . . . . . . . . Scan Component 1 | . . . . . . . . . . . . . . . 1 . . . . . . . . . . . . . . . Repair 1 | . . . . . . . . . . . . . . . 1 . . . . . . . . . . . . . . . Recycling Unit Hacks 4 | . 1 . . . 3 . . . . . . . . . . . . . . . . . . . . . . . . . Retrieve Components 4 | . 1 . . . 3 . . . . . . . . . . . . . . . . . . . . . . . . . Scanalyzer 2 | . . . 2 . . . . . . . . . . . . . . . . . . . . . . . . . . . Insert Component 1 | . . . 1 . . . . . . . . . . . . . . . . . . . . . . . . . . . Analyze 1 | . . . 1 . . . . . . . . . . . . . . . . . . . . . . . . . . . Garrison Access Hacks 9 | . . . . . . 1 . 1 . . . . 1 . 1 . 1 . . . . . 1 1 . 1 . 1 . . Unlock Access 9 | . . . . . . 1 . 1 . . . . 1 . 1 . 1 . . . . . 1 1 . 1 . 1 . . Unauthorized Hacks 42 | . 1 . 1 11 19 1 . . . . . . 2 . 1 . . . 1 3 . . . . . 2 . . . . Terminals 25 | . 1 . 1 10 9 1 . . . . . . 1 . . . . . 1 . . . . . . 1 . . . . Track 3 | . . . . 1 2 . . . . . . . . . . . . . . . . . . . . . . . . . Assimilate 2 | . 1 . . . . . . . . . . . 1 . . . . . . . . . . . . . . . . . Botnet 7 | . . . 1 2 1 1 . . . . . . . . . . . . 1 . . . . . . 1 . . . . Operators 2 | . . . . 2 . . . . . . . . . . . . . . . . . . . . . . . . . . Skim 11 | . . . . 5 6 . . . . . . . . . . . . . . . . . . . . . . . . . Fabricators . | . . . . . . . . . . . . . . . . . . . . . . . . . . . . . . . Repair Stations 1 | . . . . . . . . . . . . . . . 1 . . . . . . . . . . . . . . . Mechanics 1 | . . . . . . . . . . . . . . . 1 . . . . . . . . . . . . . . . Recycling Units 14 | . . . . 1 10 . . . . . . . . . . . . . . 3 . . . . . . . . . . Monitor 1 | . . . . . . . . . . . . . . . . . . . . 1 . . . . . . . . . . Reject 6 | . . . . 1 4 . . . . . . . . . . . . . . 1 . . . . . . . . . . Recyclers 2 | . . . . . 1 . . . . . . . . . . . . . . 1 . . . . . . . . . . Mask 4 | . . . . . 4 . . . . . . . . . . . . . . . . . . . . . . . . . Tunnel 1 | . . . . . 1 . . . . . . . . . . . . . . . . . . . . . . . . . Scanalyzers . | . . . . . . . . . . . . . . . . . . . . . . . . . . . . . . . Garrison Access 2 | . . . . . . . . . . . . . 1 . . . . . . . . . . . . 1 . . . . Eject 2 | . . . . . . . . . . . . . 1 . . . . . . . . . . . . 1 . . . . Data Cores Recovered . | . . . . . . . . . . . . . . . . . . . . . . . . . . . . . . . Used . | . . . . . . . . . . . . . . . . . . . . . . . . . . . . . . . Hacking Detections 48 | . 1 . 2 10 7 4 1 . 2 . . 2 1 1 1 2 2 . 1 3 1 . 2 . 1 3 . 1 . . Full Trace Events 7 | . 1 . . . 1 . . . 1 . . . . . 1 1 . . . . . . 1 . . 1 . . . . Feedback Events 1 | . . . . . 1 . . . . . . . . . . . . . . . . . . . . . . . . . Corruption 1 | . . . . . 1 . . . . . . . . . . . . . . . . . . . . . . . . . Feedback Blocked . | . . . . . . . . . . . . . . . . . . . . . . . . . . . . . . . Robot Schematics Acquired 2 | . 1 . . . . . . . . . . . . . . . . . 1 . . . . . . . . . . . Robots Built . | . . . . . . . . . . . . . . . . . . . . . . . . . . . . . . . Authchips . | . . . . . . . . . . . . . . . . . . . . . . . . . . . . . . . Time . | . . . . . . . . . . . . . . . . . . . . . . . . . . . . . . . Total Robot Build Rating . | . . . . . . . . . . . . . . . . . . . . . . . . . . . . . . . Part Schematics Acquired 3 | . . . 1 1 1 . . . . . . . . . . . . . . . . . . . . . . . . . Parts Built . | . . . . . . . . . . . . . . . . . . . . . . . . . . . . . . . Authchips . | . . . . . . . . . . . . . . . . . . . . . . . . . . . . . . . Time . | . . . . . . . . . . . . . . . . . . . . . . . . . . . . . . . Total Part Build Rating . | . . . . . . . . . . . . . . . . . . . . . . . . . . . . . . . Parts Repaired 1 | . . . . . . . . . . . . . . . 1 . . . . . . . . . . . . . . . Time 56 | . . . . . . . . . . . . . . . 56 . . . . . . . . . . . . . . . Parts Recycled . | . . . . . . . . . . . . . . . . . . . . . . . . . . . . . . . Recycled Matter . | . . . . . . . . . . . . . . . . . . . . . . . . . . . . . . . Retrieved Matter . | . . . . . . . . . . . . . . . . . . . . . . . . . . . . . . . Retrieved Components 5 | . 1 . . . 4 . . . . . . . . . . . . . . . . . . . . . . . . . Parts Scanalyzed 1 | . . . 1 . . . . . . . . . . . . . . . . . . . . . . . . . . . Part Schematics Acquired 1 | . . . 1 . . . . . . . . . . . . . . . . . . . . . . . . . . . Parts Damaged . | . . . . . . . . . . . . . . . . . . . . . . . . . . . . . . . Bothacking | -11 -10 -10 -9 -9 -9 -7 -7 -7 -7 -6 -6 -6 -5 -5 -5 -5 -4 -4 -4 -4 -4 -4 -4 -3 -3 -2 -2 -1 -1 -1 ------------ Run | Yrd Mat Min Mat Sto Rec Fac Gar Fac Gar Fac Was Fac Fac Gar Fac Gar Fac Gar Fac Ext Cet Arc Hub Res Gar Res Gar Acc Gar Acc Used RIF Installer 8 | . . . . . . . 1 . 1 . . . . 1 . 1 . 1 . . . . . . 1 . 1 . 1 . Command Fork 1 | . . . . . . . . . . . . . . . . . . 1 . . . . . . . . . . . . Threat Obfuscator 1 | . . . . . . . . . . . . . . 1 . . . . . . . . . . . . . . . . Alert ID Control 1 | . . . . . . . . . . . . . . . . 1 . . . . . . . . . . . . . . Program Shield 1 | . . . . . . . . . 1 . . . . . . . . . . . . . . . . . . . . . Autooverride 2 | . . . . . . . . . . . . . . . . . . . . . . . . . 1 . 1 . . . Crosswire 1 | . . . . . . . . . . . . . . . . . . . . . . . . . . . . . 1 . Robots Hacked 160 | . . . . . . 1 . . 5 . 6 . . 17 11 5 4 11 6 9 2 3 12 . 9 11 8 7 24 9 Non-combat 28 | . . . . . . 1 . . . . . . . . 3 . 4 . 4 3 1 . 3 . . 1 . 3 . 5 Combat 132 | . . . . . . . . . 5 . 6 . . 17 8 5 . 11 2 6 1 3 9 . 9 10 8 4 24 4 Autooverrided 19 | . . . . . . . . . . . . . . . . . . . . . . . . . 1 2 2 2 10 2 Robot Hacks Applied 172 | . . . . . . 1 . . 5 . 7 . . 20 13 5 4 12 10 9 2 4 13 . 10 14 7 11 16 9 parse_system 5 | . . . . . . . . . . . . . . . . . . . . . 2 . . . 1 . . . 1 1 find_chute 1 | . . . . . . 1 . . . . . . . . . . . . . . . . . . . . . . . . map_walls 2 | . . . . . . . . . . . . . . . 1 . . . . . . . . . . . . 1 . . drop_inventory 2 | . . . . . . . . . . . . . . . . . . . . 1 . . . . . . . . . 1 find_recycling 2 | . . . . . . . . . . . . . . . 1 . . . 1 . . . . . . . . . . . ignore_parts 1 | . . . . . . . . . . . . . . . . . . . . . . . . . . . . 1 . . purge_threat 10 | . . . . . . . . . . . . . . . . . . . 2 . . . . . . 2 . 5 . 1 block_reporting 1 | . . . . . . . . . . . . . . . . . . . . . . . . . . 1 . . . . summon_haulers 1 | . . . . . . . . . . . . . . . . . . . 1 . . . . . . . . . . . map_route 4 | . . . . . . . . . . . . . . . 1 . 1 . . . . . 1 . . . . . . 1 redirect_shields 1 | . . . . . . . . . . . . . . . . . . . . . . . 1 . . . . . . . ignore_targets 7 | . . . . . . . . . . . 7 . . . . . . . . . . . . . . . . . . . find_garrison 2 | . . . . . . . . . . . . . . . 1 . . . . . . . . . . 1 . . . . tweak_propulsion 1 | . . . . . . . . . . . . . . . . . . . 1 . . . . . . . . . . . scatter_targeting 2 | . . . . . . . . . . . . . . . . . . . . . . 1 . . 1 . . . . . broadcast_data 3 | . . . . . . . . . . . . . . 2 1 . . . . . . . . . . . . . . . disrupt_area 4 | . . . . . . . . . . . . . . . . 1 . . . . . . . . 1 1 1 . . . amplify_resonance 23 | . . . . . . . . . . . . . . 3 3 2 . 2 . . . 1 2 . 1 3 . . 5 1 wipe_record 1 | . . . . . . . . . . . . . . . . . . . . 1 . . . . . . . . . . disable_weapons 18 | . . . . . . . . . 1 . . . . 2 2 1 . 2 1 3 . . 3 . 2 . . . 1 . go_dormant 1 | . . . . . . . . . . . . . . . 1 . . . . . . . . . . . . . . . overwrite_iff 27 | . . . . . . . . . . . . . . 9 1 . . 2 . . . 2 2 . 1 2 1 . 6 1 formatsys_low 11 | . . . . . . . . . . . . . . . . . 3 . 3 2 . . . . . 1 . 1 . 1 formatsys_high 42 | . . . . . . . . . 4 . . . . 4 1 1 . 6 1 2 . . 4 . 3 3 5 3 3 2 Relay Couplers Released 98 | . . . . . . . 9 . . . . . 3 14 . 8 . 12 . . . . 3 . 15 3 19 . 12 . Ejected 6 | . . . . . . . . . . . . . 3 . . . . . . . . . . . . 3 . . . . Machine Destruction 82 | . . . . . . . 6 . . . . . . 11 . 8 . 8 . . . . 3 . 15 . 19 . 12 . Programmers 10 | . . . . . . . 3 . . . . . . 3 . . . 4 . . . . . . . . . . . . Attached 69 | . . . . . . . 1 . 3 . 1 . . 7 4 2 . 6 3 2 . 2 3 . 6 4 8 6 7 4 Crosswired 8 | . . . . . . . . . . . . . . . . . . . . . . . . . . . . . 8 . Fabnet Peak Effective % . | . . . . . . . . . . . . . . . . . . . . . . . . . . . . . . . Robots Rewired 23 | . . . . . . . . . 3 . . . . . . . . . . 18 . . . . . . 2 . . . Allies Hacked 1 | . . . . . . . . . . . . . . . . . 1 . . . . . . . . . . . . . Hacks Repelled . | . . . . . . . . . . . . . . . . . . . . . . . . . . . . . . . Allies | -11 -10 -10 -9 -9 -9 -7 -7 -7 -7 -6 -6 -6 -5 -5 -5 -5 -4 -4 -4 -4 -4 -4 -4 -3 -3 -2 -2 -1 -1 -1 -------- Run | Yrd Mat Min Mat Sto Rec Fac Gar Fac Gar Fac Was Fac Fac Gar Fac Gar Fac Gar Fac Ext Cet Arc Hub Res Gar Res Gar Acc Gar Acc Total Allies 146 | . . . . 10 . . . . 7 . . . 1 13 2 1 3 8 5 26 5 2 6 . 5 8 10 7 22 5 Largest Group 26 | . . . . 10 10 . . . 5 2 2 . 1 2 1 1 3 7 11 26 24 24 2 . 2 3 5 7 5 3 Highest-Rated Group 1332 | . . . . 88 88 . . . 132 64 64 . 26 98 41 49 66 259 358 1111 1332 1283 77 . 116 145 210 545 219 309 Highest-Rated Ally 219 | . . . . 16 16 . . . 39 32 32 . 26 49 41 49 23 49 49 159 152 146 51 . 116 64 69 219 219 219 Total Orders 39 | . . . . . . . . . . . . . . . . . 1 5 2 14 13 3 . . . 1 . . . . STAY 3 | . . . . . . . . . . . . . . . . . . . . . 2 1 . . . . . . . . ROAM 3 | . . . . . . . . . . . . . . . . . . . . 3 . . . . . . . . . . FOLLOW 3 | . . . . . . . . . . . . . . . . . . . . . 2 1 . . . . . . . . GUARD 3 | . . . . . . . . . . . . . . . . . . 2 . 1 . . . . . . . . . . AID 18 | . . . . . . . . . . . . . . . . . 1 3 2 6 4 1 . . . 1 . . . . DROP 3 | . . . . . . . . . . . . . . . . . . . . 1 2 . . . . . . . . . COLLECT 6 | . . . . . . . . . . . . . . . . . . . . 3 3 . . . . . . . . . Ally Attacks 739 | . . . . . 39 . . . 35 . 55 . . 41 14 13 . 18 2 168 63 10 21 . 28 12 74 62 49 35 Total Damage 24304 | . . . . . 327 . . . 651 . 2547 . . 1009 428 464 . 429 66 4808 1562 341 605 . 753 441 3095 2923 1924 1931 Kills 130 | . . . . . 4 . . . 8 . 5 . . 5 3 3 . 4 . 20 9 2 3 . 4 . 15 19 11 15 Allies Corrupted 13 | . . . . . . . . . . . 1 . . 1 . . . 1 . . . . 2 . . 1 2 3 1 1 Allies Melted 1 | . . . . . . . . . . . . . . . . . . . . 1 . . . . . . . . . . Intel | -11 -10 -10 -9 -9 -9 -7 -7 -7 -7 -6 -6 -6 -5 -5 -5 -5 -4 -4 -4 -4 -4 -4 -4 -3 -3 -2 -2 -1 -1 -1 ------- Run | Yrd Mat Min Mat Sto Rec Fac Gar Fac Gar Fac Was Fac Fac Gar Fac Gar Fac Gar Fac Ext Cet Arc Hub Res Gar Res Gar Acc Gar Acc Robot Analysis Total 5 | . . . . 1 4 . . . . . . . . . . . . . . . . . . . . . . . . . Derelict Logs Recovered 3 | . . 3 . . . . . . . . . . . . . . . . . . . . . . . . . . . . Drone Launches . | . . . . . . . . . . . . . . . . . . . . . . . . . . . . . . . Drone Recoveries . | . . . . . . . . . . . . . . . . . . . . . . . . . . . . . . . Exploration | -11 -10 -10 -9 -9 -9 -7 -7 -7 -7 -6 -6 -6 -5 -5 -5 -5 -4 -4 -4 -4 -4 -4 -4 -3 -3 -2 -2 -1 -1 -1 ------------- Run | Yrd Mat Min Mat Sto Rec Fac Gar Fac Gar Fac Was Fac Fac Gar Fac Gar Fac Gar Fac Ext Cet Arc Hub Res Gar Res Gar Acc Gar Acc Turns Passed 25893 | 76 208 146 92 769 2759 1076 996 58 719 48 416 969 433 1745 318 1318 575 685 217 1265 755 519 1139 333 2866 650 2477 384 1261 621 Spaces Moved 12563 | 46 296 369 192 448 1016 587 378 41 380 35 176 294 187 1067 170 633 352 439 154 809 259 234 330 101 719 390 948 312 769 432 Core 137 | 46 91 . . . . . . . . . . . . . . . . . . . . . . . . . . . . . Treads 4724 | . . . . 375 693 107 . . 5 . . . 15 38 43 626 352 293 . 215 259 234 272 69 267 186 192 . 51 432 Legs 4703 | . . . . . 108 229 271 . 239 35 176 294 135 289 127 7 . 11 154 594 . . 24 32 452 26 552 312 636 . Wheels 75 | . . . . . 75 . . . . . . . . . . . . . . . . . . . . . . . . . Hover 204 | . . . . . . . . . . . . . . . . . . . . . . . . . . 66 137 . 1 . Flight 2720 | . 205 369 192 73 140 251 107 41 136 . . . 37 740 . . . 135 . . . . 34 . . 112 67 . 81 . Fastest Speed 32 | 50 37 37 34 32 125 93 79 140 140 140 140 75 104 40 40 40 137 73 94 94 94 172 150 131 113 81 88 88 82 82 Average Speed 112 | 57 45 37 34 140 176 117 108 140 140 140 140 138 113 71 40 106 137 93 94 94 114 172 200 189 166 112 104 88 83 82 Slowest Speed 320 | 100 120 37 34 320 320 149 151 140 140 140 140 205 169 169 40 212 137 137 94 94 172 172 217 211 267 218 139 88 88 93 Overloaded Moves . | . . . . . . . . . . . . . . . . . . . . . . . . . . . . . . . Propulsion Burnouts . | . . . . . . . . . . . . . . . . . . . . . . . . . . . . . . . Robots Hopped 7 | . 6 1 . . . . . . . . . . . . . . . . . . . . . . . . . . . . Cave-ins Triggered . | . . . . . . . . . . . . . . . . . . . . . . . . . . . . . . . Exploration Rate (%) 40 | 3 51 76 18 65 92 15 39 2 43 2 78 6 6 78 8 50 8 57 7 72 72 94 51 3 70 12 78 9 65 10 Regions Visited 30 Branch Regions 7 Pre-discovered Areas 5 | . . 1 . . 4 . . . . . . . . . . . . . . . . . . . . . . . . . Known Exits Taken 9 | . . . . . . 1 . 1 . . . 1 1 . 1 . 1 . . . . . . 1 . 1 . 1 . . Unknown Exits Taken 11 | 1 1 1 1 1 1 . . . . . . . . . . . . . 1 1 1 1 1 . . . . . . . Scrap Searched 2 | . . 2 . . . . . . . . . . . . . . . . . . . . . . . . . . . . Spaces Dug 33 | . . . . 2 . . . . . . . 1 . . . . . . . 11 19 . . . . . . . . . Terrain Destroyed 444 | . . . . 21 1 17 . . 10 . 1 8 . 14 . 5 4 8 18 21 26 . 220 3 24 9 25 2 3 4 Melee 2 | . . . . 2 . . . . . . . . . . . . . . . . . . . . . . . . . . Projectile 211 | . . . . . 1 1 . . 10 . 1 8 . 14 . 4 4 8 . 21 26 . 43 3 24 9 25 2 3 4 AOE 230 | . . . . 19 . 16 . . . . . . . . . . . . 18 . . . 177 . . . . . . . Terrain Rammed 1 | . . . . . . . . . . . . . . . . 1 . . . . . . . . . . . . . . Walls Destroyed 1 | . . . . . . . . . . . . . . . . 1 . . . . . . . . . . . . . . Machines Disabled . | . . . . . . . . . . . . . . . . . . . . . . . . . . . . . . . Actions | -11 -10 -10 -9 -9 -9 -7 -7 -7 -7 -6 -6 -6 -5 -5 -5 -5 -4 -4 -4 -4 -4 -4 -4 -3 -3 -2 -2 -1 -1 -1 --------- Run | Yrd Mat Min Mat Sto Rec Fac Gar Fac Gar Fac Was Fac Fac Gar Fac Gar Fac Gar Fac Ext Cet Arc Hub Res Gar Res Gar Acc Gar Acc Total 22061 | 76 326 378 206 549 1952 901 878 41 512 35 271 684 406 1820 378 1095 429 683 219 1265 679 346 645 217 2104 505 2208 389 1289 575 Wait 6761 | 8 7 . . 16 872 236 407 . 39 . 51 275 196 375 152 291 28 177 35 337 368 99 154 79 1097 16 1025 17 373 31 Move 12521 | 45 283 366 191 447 1015 587 377 41 379 35 175 293 186 1066 170 632 351 438 153 808 258 233 329 100 718 389 946 311 768 431 Hop 7 | . 6 1 . . . . . . . . . . . . . . . . . . . . . . . . . . . . Pick Up 261 | 4 2 5 2 25 10 7 9 . 14 . . 4 6 21 3 14 7 6 3 9 6 1 11 6 27 10 19 5 19 6 Fast Attach 130 | 5 3 1 . 5 1 4 2 . 3 . 2 9 4 11 1 8 7 . 1 . . 2 7 3 16 4 16 3 7 5 Attach 126 | 2 3 . 2 2 3 2 4 . 4 . 2 1 2 12 2 7 3 2 1 3 1 1 5 5 12 12 14 6 7 6 Detach 30 | 2 2 . . . 6 . 1 . . . . . 1 3 . 3 . . . . . . . 1 3 3 4 1 . . Swap 139 | . . . 3 13 2 6 3 . 2 . . 2 . 12 2 8 3 7 3 . 3 2 14 1 16 5 9 5 9 9 Drop 252 | . 2 5 2 17 17 10 12 . 13 . 1 6 6 26 3 17 11 4 2 5 6 1 10 6 28 5 16 3 15 3 Fire 1491 | 10 18 . 6 16 24 40 54 . 53 . 40 89 3 157 41 101 19 49 21 99 37 7 114 13 130 61 104 36 88 61 Melee 97 | . . . . 7 . . . . . . . . . 1 . . . . . . . . . . 34 . 29 2 2 22 Ram 2 | . . . . . 1 . . . . . . . . . . 1 . . . . . . . . . . . . . . Kick 28 | . . . . . . 2 . . . . . . . . . . . . . 4 . . . . . . 22 . . . Crush 40 | . . . . 1 1 . . . . . . . 2 5 . 13 . . . . . . 1 3 13 . . . . 1 Escape Stasis 175 | . . . . . . 7 9 . 5 . . 5 . 130 4 . . . . . . . . . 10 . 4 . 1 . Rewire 1 | . . . . . . . . . . . . . . 1 . . . . . . . . . . . . . . . . Trap . | . . . . . . . . . . . . . . . . . . . . . . . . . . . . . . . Miscellaneous . | . . . . . . . . . . . . . . . . . . . . . . . . . . . . . . . Route ------- -11/Scrapyard -10/Materials -10/Mines -9/Materials (discovered 2 exits: Mat / *Sto) -9/Storage (discovered 2 exits: Mat / *Rec) -9/Recycling -7/Factory -7/Garrison -7/Factory -7/Garrison -6/Factory -6/Waste -6/Factory -5/Factory -5/Garrison (discovered 2 exits: *Fac x2) -5/Factory -5/Garrison -4/Factory (discovered 2 exits: Res / Gar) -4/Garrison (discovered 2 exits: *Fac x2) -4/Factory (discovered 2 exits: *Res / *Ext) -4/Extension (discovered 2 exits: *Res / *Cet) -4/Cetus (discovered 2 exits: *Res / [*Arc]) -4/Archives (discovered 2 exits: *Res / *Hub) -4/Hub_04(d) (discovered 3 exits: *Res x3) -3/Research -3/Garrison (discovered 3 exits: *Res x3) -2/Research (discovered 2 exits: *Acc / Gar) -2/Garrison (discovered 3 exits: *Acc x3) -1/Access -1/Garrison (discovered 2 exits: [*Acc x2]) -1/Access To Epsilon Eridani History --------- Turn | Location | Event 10 | -11/Scrapyard | Discovered new exit (range 16) 77 | -11/Scrapyard | Entered Materials 241 | -10/Materials | Discovered new exit (range 11) 285 | -10/Materials | Entered Mines 303 | -10/Mines | Met a Derelict who couldn't figure out how to use a Trap Extractor 334 | -10/Mines | Learned Materials terminal intel 346 | -10/Mines | A weapon hastily lodged in a ceiling crevice suddenly fell to the ground 400 | -10/Mines | Learned 2 Materials zone layouts 427 | -10/Mines | Discovered new exit (range 10) 428 | -10/Mines | Learned location of Storage (-9) 431 | -10/Mines | Entered Materials 431 | -9/Materials | Evolved 2 slots: Propulsion x1, Utility x1 432 | -9/Materials | Identified exit to Materials 433 | -9/Materials | Loaded intel: 12 terminal locations 496 | -9/Materials | Build established: Scavenger-Mutant 513 | -9/Materials | Discovered new exit (range 4) 523 | -9/Materials | Entered Storage 917 | -9/Storage | Build established: Mutant 923 | -9/Storage | Destroyed 7 combat bots 1007 | -9/Storage | Used back door to open Recycling access 1007 | -9/Storage | Discovered new exit (range 5) 1140 | -9/Storage | Central database locked down 1144 | -9/Storage | Assisted by bots powering up and referring to "LRC-V3" 1252 | -9/Storage | Learned location of 2 exits from Materials 1292 | -9/Storage | Entered Recycling 1292 | -9/Recycling | Accompanied by 10 allies 1441 | -9/Recycling | Build established: Commander-Mutant 1472 | -9/Recycling | Discovered new exit (range 8) 1517 | -9/Recycling | Lost 4 allies 1772 | -9/Recycling | Identified exit to Scraptown 1813 | -9/Recycling | Learned 2 Materials zone layouts 1842 | -9/Recycling | Learned 2 Storage zone layouts 1874 | -9/Recycling | Learned Storage security intel 1876 | -9/Recycling | Learned location of 3 exits from Materials 1886 | -9/Recycling | Learned location of 3 exits from Materials 1922 | -9/Recycling | Scanned before Scraplab entrance 1946 | -9/Recycling | Entered Scraplab 1954 | -9/Recycling | Angered Scraplab inhabitants 1955 | -9/Recycling | Found Prototype Device 1955 | -9/Recycling | Identified Scrap Engine 2001 | -9/Recycling | Lost 6 allies 2251 | -9/Recycling | Build established: Mutant 3130 | -9/Recycling | Build established: Construct 4051 | -9/Recycling | Entered Factory 4051 | -7/Factory | Evolved 4 slots: Power x1, Propulsion x1, Utility x1, Weapon x1 5127 | -7/Factory | Identified exit to Garrison 5127 | -7/Factory | Entered Garrison 5147 | -7/Garrison | Installed Relay Interface Framework 5297 | -7/Garrison | Triggered checkpoint 5343 | -7/Garrison | Triggered checkpoint 5368 | -7/Garrison | Garrison Relay disabled 5523 | -7/Garrison | Triggered checkpoint 5597 | -7/Garrison | Discovered new exit (range 12) 5619 | -7/Garrison | Triggered checkpoint 5731 | -7/Garrison | Garrison Relay disabled 6033 | -7/Garrison | Build established: Bothacker-Construct 6123 | -7/Garrison | Entered Factory 6181 | -7/Factory | Identified exit to Garrison 6181 | -7/Factory | Entered Garrison 6265 | -7/Garrison | Triggered checkpoint 6355 | -7/Garrison | Triggered checkpoint 6355 | -7/Garrison | Triggered checkpoint 6365 | -7/Garrison | Triggered checkpoint 6407 | -7/Garrison | Lost 3 allies 6531 | -7/Garrison | Discovered new exit (range 14) 6557 | -7/Garrison | Triggered checkpoint 6575 | -7/Garrison | Expanded RIF knowledge: Program Shield 6605 | -7/Garrison | P-60 Hacker assimilated allied P7-CKL(l) 6743 | -7/Garrison | Triggered checkpoint 6893 | -7/Garrison | Identified exit to Factory 6900 | -7/Garrison | Entered Factory 6900 | -6/Factory | Accompanied by 2 allies 6900 | -6/Factory | Evolved 2 slots: Utility x2 6948 | -6/Factory | Sucked down chute 6948 | -6/Factory | Entered Waste 6963 | -6/Waste | EMP discharged 6963 | -6/Waste | Spotted C-40 Crusher 6978 | -6/Waste | 2 allies followed down the chute 6991 | -6/Waste | Spotted C-40 Crusher 6992 | -6/Waste | Spotted C-40 Crusher 7002 | -6/Waste | Allies destroyed C-40 Crusher 7007 | -6/Waste | Spotted C-40 Crusher 7008 | -6/Waste | Spotted C-40 Crusher 7018 | -6/Waste | Allies destroyed C-40 Crusher 7063 | -6/Waste | EMP discharged 7063 | -6/Waste | System corruption reached 10% 7149 | -6/Waste | Spotted C-40 Crusher 7151 | -6/Waste | Allies destroyed C-40 Crusher 7163 | -6/Waste | EMP discharged 7239 | -6/Waste | Destroyed C-40 Crusher 7263 | -6/Waste | EMP discharged 7326 | -6/Waste | Discovered new exit (range 10) 7362 | -6/Waste | Identified exit to Factory 7363 | -6/Waste | EMP discharged 7363 | -6/Waste | System corruption reached 30% 7364 | -6/Waste | Entered Factory 7482 | -6/Factory | Build established: Construct 8171 | -6/Factory | Discovered new exit (range 16) 8307 | -6/Factory | Core integrity fell below 50% 8331 | -6/Factory | Identified exit to Factory 8333 | -6/Factory | Entered another Factory area 8333 | -5/Factory | Evolved 2 slots: Propulsion x2 8357 | -5/Factory | Lost 5 parts (1p1u3w) 8752 | -5/Factory | Identified exit to Garrison 8766 | -5/Factory | Entered Garrison 8950 | -5/Garrison | Triggered checkpoint 9002 | -5/Garrison | Lost 3 parts (1p2u) 9016 | -5/Garrison | Build established: Bothacker-Construct 9433 | -5/Garrison | Garrison Relay disabled 9554 | -5/Garrison | Triggered checkpoint 9604 | -5/Garrison | Triggered checkpoint 9624 | -5/Garrison | Lost 3 parts (3w) 9672 | -5/Garrison | Triggered checkpoint 9838 | -5/Garrison | Spotted B-75 Beast 9838 | -5/Garrison | Spotted B-90 Cyclops 9863 | -5/Garrison | Garrison Relay disabled 9872 | -5/Garrison | Triggered checkpoint 9925 | -5/Garrison | Discovered new exit (range 3) 10002 | -5/Garrison | Triggered checkpoint 10035 | -5/Garrison | Garrison Relay disabled 10210 | -5/Garrison | Discovered new exit (range 12) 10287 | -5/Garrison | Triggered checkpoint 10320 | -5/Garrison | Expanded RIF knowledge: Threat Obfuscation 10511 | -5/Garrison | Entered Factory 10699 | -5/Factory | Repaired Imp. Remote Datajack 10811 | -5/Factory | First assault squad dispatched 10829 | -5/Factory | Identified exit to Garrison 10829 | -5/Factory | Entered Garrison 10909 | -5/Garrison | Triggered checkpoint 10925 | -5/Garrison | Triggered checkpoint 10983 | -5/Garrison | Lost 3 parts (1p1u1w) 11023 | -5/Garrison | Triggered checkpoint 11056 | -5/Garrison | Expanded RIF knowledge: Alert ID Control 11203 | -5/Garrison | Triggered checkpoint 11269 | -5/Garrison | Discovered new exit (range 3) 11495 | -5/Garrison | Lost 4 parts (2p1u1w) 11545 | -5/Garrison | Triggered checkpoint 11615 | -5/Garrison | Garrison Relay disabled 11909 | -5/Garrison | Build established: Botlord-Construct 12147 | -5/Garrison | Entered Factory 12147 | -4/Factory | Evolved 2 slots: Utility x2 12378 | -4/Factory | Discovered new exit (range 104) 12438 | -4/Factory | Identified exit to Garrison 12722 | -4/Factory | Entered Garrison 12722 | -4/Garrison | Accompanied by 3 allies 12794 | -4/Garrison | Triggered checkpoint 12826 | -4/Garrison | Triggered checkpoint 12828 | -4/Garrison | Triggered checkpoint 12869 | -4/Garrison | Lost 3 allies 12872 | -4/Garrison | Triggered checkpoint 12884 | -4/Garrison | Expanded RIF knowledge: Command Fork 12937 | -4/Garrison | Discovered new exit (range 10) 12994 | -4/Garrison | Triggered checkpoint 13005 | -4/Garrison | Garrison Relay disabled 13128 | -4/Garrison | Triggered checkpoint 13201 | -4/Garrison | Discovered new exit (range 10) 13214 | -4/Garrison | Triggered checkpoint 13237 | -4/Garrison | Garrison Relay disabled 13407 | -4/Garrison | Entered Factory 13407 | -4/Factory | Accompanied by 7 allies 13420 | -4/Factory | Discovered new exit (range 15) 13480 | -4/Factory | Spotted B-86 Titan 13485 | -4/Factory | Destroyed B-86 Titan 13580 | -4/Factory | Discovered new exit (range 6) 13624 | -4/Factory | Entered Extension 13624 | -4/Extension | Accompanied by 11 allies 13750 | -4/Extension | Rescued A7 13888 | -4/Extension | Lost 3 allies 14019 | -4/Extension | Rescued a captive Derelict 14119 | -4/Extension | Build established: Commander-Construct 14384 | -4/Extension | Spotted B-86 Titan 14413 | -4/Extension | Allies destroyed B-86 Titan 14414 | -4/Extension | Spotted B-86 Titan 14423 | -4/Extension | Allies destroyed B-86 Titan 14472 | -4/Extension | Lost 7 allies 14640 | -4/Extension | Discovered new exit (range 16) 14642 | -4/Extension | Discovered new exit (range 14) 14889 | -4/Extension | Entered Cetus 14889 | -4/Cetus | Accompanied by 23 allies (A7) 14894 | -4/Cetus | Acquired a Cetus Manufacturing Module code from A7 14901 | -4/Cetus | Spotted Cetus Guard 14901 | -4/Cetus | Spotted Cetus Guard 14903 | -4/Cetus | Spotted Cetus Guard 14904 | -4/Cetus | Spotted Cetus Guard 14910 | -4/Cetus | Allies destroyed Cetus Guard 14920 | -4/Cetus | Allies destroyed Cetus Guard 14926 | -4/Cetus | Allies destroyed Cetus Guard 14933 | -4/Cetus | Allies destroyed Cetus Guard 15203 | -4/Cetus | Started Cetus Manufacturing Module 15212 | -4/Cetus | Escorted A7 to Cetus Mainframe 15221 | -4/Cetus | Discovered new exit (range 15) 15228 | -4/Cetus | Manufactured an Enhanced Grunt 15236 | -4/Cetus | Spotted Cetus Guard 15236 | -4/Cetus | Spotted Cetus Guard 15244 | -4/Cetus | Destroyed Cetus Guard 15246 | -4/Cetus | Spotted Cetus Guard 15248 | -4/Cetus | Spotted Cetus Guard 15253 | -4/Cetus | Manufactured an Enhanced Grunt 15257 | -4/Cetus | Allies destroyed Cetus Guard 15264 | -4/Cetus | Allies destroyed Cetus Guard 15267 | -4/Cetus | Allies destroyed Cetus Guard 15269 | -4/Cetus | Discovered new exit (range 15) 15278 | -4/Cetus | Manufactured an Enhanced Grunt 15290 | -4/Cetus | Lost 3 allies 15292 | -4/Cetus | Met Revision 17 15303 | -4/Cetus | Manufactured an Enhanced Grunt 15328 | -4/Cetus | Manufactured an Enhanced Grunt 15639 | -4/Cetus | Security sweep announced 15644 | -4/Cetus | Entered Archives 15644 | -4/Archives | Accompanied by 23 allies (A7) 15649 | -4/Archives | Received a hacking code to weaken MAIN.C 15701 | -4/Archives | Met Zhirov 15707 | -4/Archives | Reinforcements dispatched to Archives 15752 | -4/Archives | Reinforcements dispatched to Archives 15772 | -4/Archives | Zhirov detonated Archives 15803 | -4/Archives | Lost 22 allies 15883 | -4/Archives | Discovered new exit (range 16) 15889 | -4/Archives | Discovered new exit (range 15) 16073 | -4/Archives | Build established: Bothacker-Construct 16163 | -4/Archives | Entered Hub_04(d) 16267 | -4/Hub_04(d) | Lost 3 allies 16273 | -4/Hub_04(d) | Discovered new exit (range 11) 16504 | -4/Hub_04(d) | Build established: Construct 16681 | -4/Hub_04(d) | Discovered new exit (range 5) 16825 | -4/Hub_04(d) | Identified exit to Garrison 16839 | -4/Hub_04(d) | Garrison activated, responded to threat 17161 | -4/Hub_04(d) | Discovered new exit (range 15) 17173 | -4/Hub_04(d) | Network Hub disabled 17185 | -4/Hub_04(d) | Spotted Lightning 17187 | -4/Hub_04(d) | Spotted Lightning 17193 | -4/Hub_04(d) | Spotted Lightning 17206 | -4/Hub_04(d) | System corruption reached 10% 17216 | -4/Hub_04(d) | Spotted Lightning 17248 | -4/Hub_04(d) | Destroyed Lightning 17254 | -4/Hub_04(d) | Destroyed Lightning 17267 | -4/Hub_04(d) | Core integrity fell below 50% 17271 | -4/Hub_04(d) | Found Prototype Device 17283 | -4/Hub_04(d) | Found Prototype Energy Cannon 17289 | -4/Hub_04(d) | Spotted Lightning 17302 | -4/Hub_04(d) | Entered Research 17302 | -3/Research | Evolved 2 slots: Power x1, Utility x1 17302 | -3/Research | Identified Exp. EM Disruption Field 17502 | -3/Research | Revision forces began assault on 0b10 17517 | -3/Research | Met up with Revision 17++ 17555 | -3/Research | Identified exit to Garrison 17635 | -3/Research | Entered Garrison 18005 | -3/Garrison | Build established: Scavenger-Construct 18367 | -3/Garrison | Discovered new exit (range 58) 18367 | -3/Garrison | Discovered new exit (range 69) 18367 | -3/Garrison | Discovered new exit (range 44) 18475 | -3/Garrison | Triggered checkpoint 18519 | -3/Garrison | Garrison Relay disabled 18573 | -3/Garrison | Garrison Relay disabled 18671 | -3/Garrison | Triggered checkpoint 18854 | -3/Garrison | Spotted B-86 Titan 18883 | -3/Garrison | Triggered checkpoint 19043 | -3/Garrison | Destroyed B-86 Titan 19068 | -3/Garrison | Lost 3 parts (1n1u1w) 19258 | -3/Garrison | Spotted B-86 Titan 19355 | -3/Garrison | Destroyed B-86 Titan 19384 | -3/Garrison | Found Relay Coupler [Proto] 19414 | -3/Garrison | Found Relay Coupler [Proto] 19444 | -3/Garrison | Found Relay Coupler [Proto] 19447 | -3/Garrison | Found Relay Coupler [Proto] 19581 | -3/Garrison | Triggered checkpoint 19603 | -3/Garrison | Triggered checkpoint 19663 | -3/Garrison | Expanded RIF knowledge: Autooverride 19683 | -3/Garrison | Triggered checkpoint 19690 | -3/Garrison | Build established: Botlord-Mutant 19702 | -3/Garrison | Core integrity fell below 50% 19744 | -3/Garrison | Garrison Relay disabled 19746 | -3/Garrison | Lost 3 parts (1u2w) 19865 | -3/Garrison | Triggered checkpoint 19896 | -3/Garrison | Garrison Relay disabled 20013 | -3/Garrison | Triggered checkpoint 20501 | -3/Garrison | Entered Research 20501 | -2/Research | Evolved 2 slots: Utility x1, Weapon x1 20594 | -2/Research | Identified EMDS 20600 | -2/Research | Discovered new exit (range 4) 20658 | -2/Research | Lost 3 parts (2u1w) 20921 | -2/Research | Garrison activated, responded to threat 21015 | -2/Research | Lost 7 allies 21042 | -2/Research | Build established: Botlord-Tank 21050 | -2/Research | First assault squad dispatched 21147 | -2/Research | Identified exit to Garrison 21151 | -2/Research | Spotted B-90 Cyclops 21151 | -2/Research | Entered Garrison 21151 | -2/Garrison | Accompanied by 1 ally 21178 | -2/Garrison | Expanded RIF knowledge: Autooverride 21224 | -2/Garrison | Triggered checkpoint 21286 | -2/Garrison | Garrison Relay disabled 21735 | -2/Garrison | Build established: Botlord-Construct 21968 | -2/Garrison | Spotted B-90 Cyclops 22075 | -2/Garrison | Allies destroyed B-90 Cyclops 22089 | -2/Garrison | Lost 3 parts (1p1u1w) 22095 | -2/Garrison | Triggered checkpoint 22147 | -2/Garrison | Triggered checkpoint 22229 | -2/Garrison | Triggered checkpoint 22561 | -2/Garrison | Garrison Relay disabled 22612 | -2/Garrison | Discovered new exit (range 10) 22645 | -2/Garrison | Triggered checkpoint 22645 | -2/Garrison | Garrison Relay disabled 22655 | -2/Garrison | Triggered checkpoint 22752 | -2/Garrison | Garrison Relay disabled 22771 | -2/Garrison | Triggered checkpoint 23028 | -2/Garrison | Discovered new exit (range 13) 23037 | -2/Garrison | Identified exit to Access 23146 | -2/Garrison | Garrison Relay disabled 23162 | -2/Garrison | Triggered checkpoint 23215 | -2/Garrison | Lost 3 parts (3u) 23276 | -2/Garrison | Core integrity fell below 50% 23316 | -2/Garrison | System corruption reached 10% 23449 | -2/Garrison | Discovered exit to Access (range 10) 23628 | -2/Garrison | Entered Access 23628 | -1/Access | Accompanied by 2 allies 23628 | -1/Access | Evolved 2 slots: Power x1, Utility x1 23780 | -1/Access | Spotted B-99 Colossus 23799 | -1/Access | Assimilated Colossus 10a with formatsys_high 23951 | -1/Access | Garrison activated, responded to threat 23999 | -1/Access | Identified exit to Garrison 24012 | -1/Access | Entered Garrison 24066 | -1/Garrison | Triggered checkpoint 24078 | -1/Garrison | Garrison Relay disabled 24124 | -1/Garrison | Build established: Botlord-Gunner 24290 | -1/Garrison | Lost 3 parts (2u1w) 24432 | -1/Garrison | System corruption reached 10% 24458 | -1/Garrison | Spotted B-99 Colossus 24459 | -1/Garrison | Triggered checkpoint 24467 | -1/Garrison | Triggered checkpoint 24473 | -1/Garrison | Destroyed B-99 Colossus 24500 | -1/Garrison | Triggered checkpoint 24524 | -1/Garrison | Build established: Botlord-Construct 24556 | -1/Garrison | Lost 3 allies 24630 | -1/Garrison | Discovered new exit (range 11) 24645 | -1/Garrison | Rescued a captive Derelict 24646 | -1/Garrison | Rescued a captive Derelict 24742 | -1/Garrison | Triggered checkpoint 24769 | -1/Garrison | Garrison Relay disabled 24862 | -1/Garrison | Triggered checkpoint 24926 | -1/Garrison | Lost 4 allies 24962 | -1/Garrison | Garrison Relay disabled 24984 | -1/Garrison | Expanded RIF knowledge: Crosswire 24988 | -1/Garrison | Triggered checkpoint 24988 | -1/Garrison | Triggered checkpoint 25261 | -1/Garrison | Discovered new exit (range 13) 25273 | -1/Garrison | Entered Access 25273 | -1/Access | Spotted B-99 Colossus 25291 | -1/Access | Assimilated Colossus 10b with formatsys_high 25701 | -1/Access | Lost 3 parts (1p1u1w) 25804 | -1/Access | Lost 5 parts (1p3u1w) 25867 | -1/Access | Discovered new exit (range 4) 25894 | *** | Escaped! Last Messages --------------- Amplifying resonance, compromised power stability. 25840_ K-01 Serf collects debris. 25848_ R-10 Processor collects Adv. Targeting Computer. 25852_ R-10 Processor collects Hvy. Machine Gun. 25856_ LYYLD [Achievement: One Last FU] Map ----- +----------------------------------------------------+ | ?????????????????????????????????????????????????? | | ?????????????????????????????????????????????????? | | ?????????????????????????????????????????????????? | | ?????????????????????????????????????? ?????????? | | ?????????????????????????????????????? ?????????? | | ?????????????????????????????????????? ?????????? | | ?????????????????????????????????????# ?????????? | | ?????????????????????????????????????# #????????? | | ?????????????????????????????????????+ #????????? | | ?????????????????????????????????????# #????????? | | ?????????????????????????????????????# #????????? | | ?????????????????????????????????????# #????????? | | ?????????????????????????????????????# #????????? | | ?????????????????????????????????????# #????????? | | ?????????????????????????????????????# #????????? | | ?????????????????????????????????????# #????????? | | ?????????????????????????????????????# #????????? | | ?????????????????????????????????????# #????????? | | ?????????????????????????????????????# #????????? | | ?????????????????????????????????????# #????????? | | ?????????????????????????#####"####### %#????????? | | ?????????????????????????? " #????????? | | ??????????????????????????? " #????????? | | ??????????????????????"""""" " #????????? | | ??????????????????????" " " #????????? | | ??????????????????????" "@ " " #????????? | | ??????????????????????" "" #????????? | | ??????????????????????" " "* #????????? | | ??????????????????????"""""" " #????????? | | ?????????????????????????? " " """ #????????? | | ????????????????????????? """"T""" #????????? | | ????????????????????????######"####### #????????? | | ?????????????????????????????????????# #????????? | | ?????????????????????????????????????# #????????? | | ?????????????????????????????????????# #????????? | | ?????????????????????????????????????# #????????? | | ??????????????????????????######?????# #????????? | | ??????????????????????????# ####### #????????? | | ??????????????????????????# #???###+## | | ?????????????????########## #?? # | | ?????????????????# ## ##### #? # | | ?????????????????# =# # ####### # # | | ?????????????????# ""=!# ! !# # " # | | ?????????????????# "" [ = | " " """ ? | | ?????????????????# ""=/# / !# # """ # | | ?????????????????# S!!# = [ # " ? | | ?????????????????+ "" # # # #? # | | ?????????????????# "" # [ # #? # | | ?????????????????# "" # # #??####### | | ?????????????????# !! # # #????????? | +----------------------------------------------------+ Best States ------------- Heat Dissipation 174 Coolant Potential 100 Energy Generation 109 Energy Capacity 1115 Matter Stores 300 Matter Capacity 300 Sight Range 16 Terrain Scan Range 16 Terrain Scan Density 110 Jamming Range 14 Additional Mass Support 12 Base Temperature (-) 200 Armor Coverage 825 Resistance: EM 75 Weapon Cycling 25 Phase Shifting 15 Evasion (%) 73 Targeting Accuracy 8 Melee Accuracy 15 Target Analysis 8 Core Analysis 6 Recoil Reduction 6 Offensive Hacking 10 Defensive Hacking 10 Relay Coupler Types 8 Relay Coupler Value 184 Item Schematics ----------------- Hacking Suite | -9/Materials | Scanalyzed Cargo Storage Unit | -9/Storage | Hacked Insulated Plating | -9/Recycling | Hacked Robot Schematics ------------------ M-13 Machinist | -10/Materials | Hacked G-67 Veteran | -4/Factory | Hacked Fabricated ------------ Nothing Alien Tech Used ----------------- None Achievements -------------- One Last FU Challenges ------------ None Game ------ Seed StormLobotomyMultirail Manual? 0 Play Time 04:52:01 Cumulative 729.5 hours Start 2024.09.17 @ 21:17:14 End 2024.09.18 @ 02:07:47 Sessions 1 Manual Loads 0 Difficulty Rogue Special Mode None Game No. 159 Rogue 21 Adventurer 138 Explorer 0 Win Type 0 Total 12 Types 8/0/1/2/0/0/0/0/1 Lore% 78 Gallery% 84 Achievement% 74 Wizard Run 0 Options --------- Layout 2 ASCII 0 Keyboard 0 Movement Mouse Keybinds 0 Fullscreen 1 Font 24/Smallcaps Map View 50x49 Zoom Use 0% Tactical HUD 1 Map Filters NONE Filters NONE Steam 1 RUN: d972ac29-7795-43f7-9eb6-b58e5ed6fd41